fUST/lending_fUST_20241030
["ID","MTS","AMOUNT","RATE_DAILY","PERIOD"]
[340995137,1730221840415,-570.54,0.00021917,3]
[340995138,1730221840424,-570.54,0.00021917,3]
[340995139,1730221840434,-500.0,0.00021917,3]
[340995140,1730221840443,-500.0,0.00021917,3]
[340995141,1730221840453,-550.81,0.00021917,3]
[340995142,1730221840462,-558.49,0.00021917,3]
[340995143,1730221840471,-172.99454177,0.00021917,3]
[340995144,1730221840481,-500.0,0.00021917,3]
[340995145,1730221840490,-500.0,0.00021917,3]
[340995146,1730221840499,-500.0,0.00021917,3]
[340995147,1730221840508,-500.0,0.00021917,3]
[340995148,1730221840520,-500.0,0.00021917,3]
[340995149,1730221840529,-500.0,0.00021917,3]
[340995150,1730221840538,-509.03321033,0.00021917,3]
[340995151,1730221840547,-506.7205704,0.00021917,3]
[340995152,1730221840557,-500.0,0.00021917,3]
[340995153,1730221840565,-500.0,0.00021917,3]
[340995154,1730221840575,-500.0,0.00021917,3]
[340995155,1730221840584,-500.0,0.00021917,3]
[340995156,1730221840594,-500.0,0.00021917,3]
[340995157,1730221840603,-159.28856172,0.00021917,3]
[340995158,1730221840612,-511.48311671,0.00021917,3]
[340995159,1730221840622,-675.62,0.00021917,3]
[340995160,1730221840632,-500.0,0.00021917,3]
[340995161,1730221840642,-500.0,0.00021917,3]
[340995162,1730221840650,-500.0,0.00021917,3]
[340995163,1730221840660,-500.0,0.00021917,3]
[340995164,1730221840669,-500.0,0.00021917,3]
[340995165,1730221840679,-500.0,0.00021917,3]
[340995166,1730221840689,-504.11698583,0.00021917,3]
[340995167,1730221840699,-636.96,0.00021917,3]
[340995168,1730221840708,-500.0,0.00021917,3]
[340995169,1730221840718,-500.0,0.00021917,3]
[340995170,1730221840727,-500.0,0.00021917,3]
[340995171,1730221840737,-500.0,0.00021917,3]
[340995172,1730221840746,-500.0,0.00021917,3]
[340995173,1730221840756,-500.0,0.00021917,3]
[340995174,1730221840765,-500.0,0.00021917,3]
[340995175,1730221840775,-500.0,0.00021917,3]
[340995176,1730221840785,-500.0,0.00021917,3]
[340995177,1730221840795,-500.0,0.00021917,3]
[340995178,1730221840805,-500.0,0.00021917,3]
[340995179,1730221840814,-500.0,0.00021917,3]
[340995180,1730221840824,-500.0,0.00021917,3]
[340995181,1730221840834,-500.0,0.00021917,3]
[340995182,1730221840843,-500.0,0.00021917,3]
[340995183,1730221840852,-500.0,0.00021917,3]
[340995184,1730221840862,-500.0,0.00021917,3]
[340995185,1730221840872,-522.7,0.00021917,3]
[340995186,1730221840882,-500.0,0.00021917,3]
[340995187,1730221840891,-327.14477703,0.00021917,3]
[340995188,1730221840901,-515.75,0.00021917,3]
[340995189,1730221840911,-589.06540577,0.00021917,3]
[340995190,1730221840921,-560.51,0.00021917,3]
[340995191,1730221840930,-500.0,0.00021917,3]
[340995192,1730221840940,-590.81175406,0.00021917,3]
[340995193,1730221840950,-500.0,0.00021917,3]
[340995194,1730221840961,-500.0,0.00021917,3]
[340995195,1730221840971,-500.0,0.00021917,3]
[340995196,1730221840981,-590.25215965,0.00021917,3]
[340995197,1730221840990,-500.0,0.00021917,3]
[340995198,1730221840999,-500.0,0.00021917,3]
[340995199,1730221841009,-500.0,0.00021917,3]
[340995200,1730221841019,-500.0,0.00021917,3]
[340995201,1730221841028,-500.0,0.00021917,3]
[340995202,1730221841037,-500.0,0.00021917,3]
[340995203,1730221841047,-500.0,0.00021917,3]
[340995204,1730221841056,-517.24526909,0.00021917,3]
[340995205,1730221841065,-384.08275237,0.00021917,3]
[340995206,1730221841075,-500.0,0.00021917,3]
[340995207,1730221841085,-500.0,0.00021917,3]
[340995208,1730221841094,-500.0,0.00021917,3]
[340995209,1730221841104,-500.0,0.00021917,3]
[340995210,1730221841114,-500.0,0.00021917,3]
[340995211,1730221841123,-500.0,0.00021917,3]
[340995212,1730221841132,-500.0,0.00021917,3]
[340995213,1730221841141,-477.85499476,0.00021917,3]
[340995214,1730221841151,-500.0,0.00021917,3]
[340995215,1730221841160,-500.0,0.00021917,3]
[340995216,1730221841170,-500.0,0.00021917,3]
[340995217,1730221841180,-500.0,0.00021917,3]
[340995218,1730221841189,-500.0,0.00021917,3]
[340995219,1730221841199,-552.75,0.00021917,3]
[340995220,1730221841209,-419.44870416,0.00021917,3]
[340995221,1730221841218,-636.13095636,0.00021917,3]
[340995222,1730221841227,-500.0,0.00021917,3]
[340995223,1730221841240,-500.0,0.00021917,3]
[340995224,1730221841249,-500.0,0.00021917,3]
[340995225,1730221841258,-500.0,0.00021917,3]
[340995226,1730221841269,-500.0,0.00021917,3]
[340995227,1730221841278,-502.44406122,0.00021917,3]
[340995228,1730221841289,-500.0,0.00021917,3]
[340995229,1730221841298,-500.0,0.00021917,3]
[340995230,1730221841307,-178.57435663,0.00021917,3]
[340995231,1730221841317,-500.0,0.00021917,3]
[340995232,1730221841327,-500.0,0.00021917,3]
[340995233,1730221841337,-355.7722072,0.00021917,3]
[340995234,1730221841346,-500.0,0.00021917,3]
[340995235,1730221841355,-500.0,0.00021917,3]
[340995236,1730221841365,-500.0,0.00021917,3]
[340995237,1730221841374,-503.6535082,0.00021917,3]
[340995238,1730221841384,-500.0,0.00021917,3]
[340995239,1730221841394,-559.98959034,0.00021917,3]
[340995240,1730221841404,-500.0,0.00021917,3]
[340995241,1730221841413,-500.0,0.00021917,3]
[340995242,1730221841423,-620.51122098,0.00021917,3]
[340995243,1730221841436,-500.0,0.00021917,3]
[340995244,1730221841449,-500.0,0.00021917,3]
[340995245,1730221841461,-500.0,0.00021917,3]
[340995246,1730221841474,-500.0,0.00021917,3]
[340995247,1730221841486,-500.0,0.00021917,3]
[340995248,1730221841497,-500.0,0.00021917,3]
[340995249,1730221841507,-500.0,0.00021917,3]
[340995250,1730221841519,-500.0,0.00021917,3]
[340995251,1730221841531,-514.12,0.00021917,3]
[340995252,1730221841542,-271.77081097,0.00021917,3]
[340995253,1730221841553,-500.0,0.00021917,3]
[340995254,1730221841564,-500.0,0.00021917,3]
[340995255,1730221841576,-500.0,0.00021917,3]
[340995256,1730221841588,-500.0,0.00021917,3]
[340995257,1730221841598,-500.0,0.00021917,3]
[340995258,1730221841610,-500.0,0.00021917,3]
[340995259,1730221841621,-372.95848181,0.00021917,3]
[340995260,1730221841634,-500.0,0.00021917,3]
[340995261,1730221841647,-500.0,0.00021917,3]
[340995262,1730221841659,-500.0,0.00021917,3]
[340995263,1730221841670,-500.0,0.00021917,3]
[340995264,1730221841682,-500.0,0.00021917,3]
[340995265,1730221841693,-500.0,0.00021917,3]
[340995266,1730221841704,-500.0,0.00021917,3]
[340995267,1730221841715,-542.78913435,0.00021917,3]
[340995268,1730221841725,-500.0,0.00021917,3]
[340995269,1730221841737,-502.96447663,0.00021917,3]
[340995270,1730221841749,-500.0,0.00021917,3]
[340995271,1730221841760,-500.0,0.00021917,3]
[340995272,1730221841781,-500.0,0.00021917,3]
[340995273,1730221841792,-500.0,0.00021917,3]
[340995274,1730221841802,-500.0,0.00021917,3]
[340995275,1730221841813,-500.0,0.00021917,3]
[340995276,1730221841824,-500.0,0.00021917,3]
[340995277,1730221841834,-500.0,0.00021917,3]
[340995278,1730221841844,-500.0,0.00021917,3]
[340995279,1730221841855,-500.0,0.00021917,3]
[340995280,1730221841868,-500.0,0.00021917,3]
[340995281,1730221841878,-500.0,0.00021917,3]
[340995282,1730221841889,-500.0,0.00021917,3]
[340995283,1730221841900,-500.0,0.00021917,3]
[340995284,1730221841912,-500.0,0.00021917,3]
[340995285,1730221841923,-500.0,0.00021917,3]
[340995286,1730221841936,-500.0,0.00021917,3]
[340995287,1730221841947,-500.0,0.00021917,3]
[340995288,1730221841958,-500.92871969,0.00021917,2]
[340995289,1730221841971,-500.0,0.00021917,3]
[340995290,1730221841984,-500.0,0.00021917,3]
[340995291,1730221841995,-302.56364873,0.00021917,3]
[340995292,1730221842008,-6115.61,0.00021917,3]
[340995293,1730221842020,-500.0,0.00021917,3]
[340995294,1730221842032,-500.0,0.00021917,3]
[340995295,1730221842046,-500.0,0.00021973,2]
[340995296,1730221842056,-345.19462981,0.00021973,2]
[340995297,1730221842067,-500.0,0.00021973,2]
[340995298,1730221842077,-500.0,0.00021973,2]
[340995299,1730221842087,-500.95081306,0.00021973,2]
[340995300,1730221842097,-500.0,0.00022173,2]
[340995301,1730221842108,-507.55283619,0.00022173,2]
[340995302,1730221842121,-500.0,0.00022173,2]
[340995303,1730221842134,-500.0,0.00022173,2]
[340995304,1730221842146,-500.0,0.00022173,2]
[340995305,1730221842157,-500.0,0.00022173,2]
[340995306,1730221842168,-500.0,0.00022173,2]
[340995308,1730221842178,-500.0,0.00022173,2]
[340995309,1730221842188,-500.0,0.00022173,2]
[340995310,1730221842200,-500.0,0.00022173,2]
[340995311,1730221842212,-570.54,0.0002219,3]
[340995312,1730221842222,-385.81912227,0.00022191,3]
[340995313,1730221842233,-500.0,0.00022191,3]
[340995314,1730221842247,-500.0,0.00022191,3]
[340995315,1730221842258,-485.47516467,0.00022191,3]
[340995316,1730221842271,-500.0,0.00022191,3]
[340995317,1730221842282,-500.0,0.00022191,3]
[340995318,1730221842292,-500.0,0.00022191,2]
[340995319,1730221842302,-500.0,0.00022191,3]
[340995320,1730221842313,-500.0,0.00022191,3]
[340995321,1730221842324,-500.0,0.00022191,3]
[340995322,1730221842334,-500.0,0.00022191,3]
[340995323,1730221842345,-500.0,0.00022191,3]
[340995325,1730221842356,-500.0,0.00022191,3]
[340995326,1730221842366,-503.82559365,0.00022191,3]
[340995328,1730221842376,-500.0,0.00022191,3]
[340995329,1730221842387,-234.66578869,0.00022191,3]
[340995330,1730221842398,-615.3682899,0.00022191,3]
[340995331,1730221842409,-500.0,0.00022191,3]
[340995332,1730221842420,-500.0,0.00022191,3]
[340995333,1730221842431,-187.49,0.00022191,3]
[340995334,1730221842441,-500.0,0.00022191,3]
[340995335,1730221842452,-500.0,0.00022191,3]
[340995336,1730221842463,-675.62,0.00022191,3]
[340995337,1730221842474,-500.0,0.00022191,3]
[340995338,1730221842484,-500.0,0.00022191,3]
[340995339,1730221842495,-500.0,0.00022191,3]
[340995340,1730221842505,-636.96,0.00022191,3]
[340995341,1730221842516,-177.4,0.00022191,3]
[340995342,1730221842527,-500.0,0.00022191,3]
[340995343,1730221842537,-500.0,0.00022191,3]
[340995344,1730221842549,-500.0,0.00022191,3]
[340995345,1730221842560,-500.0,0.00022191,3]
[340995346,1730221842571,-500.0,0.00022191,3]
[340995347,1730221842582,-500.0,0.00022191,3]
[340995348,1730221842592,-500.0,0.00022191,3]
[340995349,1730221842603,-173.38,0.00022191,3]
[340995350,1730221842614,-500.0,0.00022191,3]
[340995351,1730221842624,-298.08,0.00022191,3]
[340995352,1730221842635,-500.0,0.00022191,3]
[340995353,1730221842647,-205.72,0.00022191,3]
[340995354,1730221842657,-500.0,0.00022191,3]
[340995355,1730221842668,-500.0,0.00022191,3]
[340995356,1730221842679,-253.94630103,0.00022191,3]
[340995357,1730221842691,-512.99,0.00022191,3]
[340995359,1730221842701,-500.0,0.00022191,3]
[340995361,1730221842712,-500.0,0.00022191,3]
[340995363,1730221842723,-500.0,0.00022191,3]
[340995364,1730221842734,-500.0,0.00022191,3]
[340995365,1730221842745,-500.0,0.00022191,3]
[340995366,1730221842756,-500.0,0.00022191,3]
[340995367,1730221842767,-522.94,0.00022191,3]
[340995368,1730221842778,-500.0,0.00022191,3]
[340995369,1730221842788,-500.0,0.00022191,3]
[340995370,1730221842799,-595.43452841,0.00022191,3]
[340995371,1730221842810,-500.0,0.00022191,3]
[340995372,1730221842820,-193.16,0.00022191,3]
[340995373,1730221842833,-500.0,0.00022191,3]
[340995375,1730221842844,-327.99193483,0.00022191,3]
[340995377,1730221842855,-6115.61,0.00022191,3]
[340995379,1730221842866,-500.0,0.00022191,3]
[340995380,1730221842877,-500.0,0.00022191,3]
[340995381,1730221842888,-184.57025,0.00022246,2]
[340995382,1730221842898,-184.5705,0.00022246,2]
[340995383,1730221842909,-199.661884,0.00022397,2]
[340995384,1730221842920,-199.661884,0.00022453,2]
[340995385,1730221842931,-570.54,0.00022464,3]
[340995386,1730221842941,-500.0,0.00022465,3]
[340995387,1730221842953,-500.0,0.00022465,3]
[340995389,1730221843112,-500.0,0.00022465,3]
[340995390,1730221843129,-213.72247919,0.00022465,3]
[340995391,1730221843139,-500.0,0.00022465,3]
[340995392,1730221843149,-500.0,0.00022465,3]
[340995393,1730221843159,-675.62,0.00022465,3]
[340995394,1730221843169,-500.0,0.00022465,3]
[340995395,1730221843178,-500.0,0.00022465,3]
[340995396,1730221843188,-636.96,0.00022465,3]
[340995397,1730221843198,-551.47,0.00022465,3]
[340995398,1730221843207,-561.63778798,0.00022465,3]
[340995399,1730221843217,-500.0,0.00022465,3]
[340995400,1730221843227,-500.0,0.00022465,3]
[340995401,1730221843237,-500.0,0.00022465,3]
[340995402,1730221843250,-500.0,0.00022465,3]
[340995403,1730221843260,-500.0,0.00022465,3]
[340995404,1730221843269,-500.0,0.00022465,3]
[340995405,1730221843278,-500.0,0.00022465,3]
[340995406,1730221843288,-372.02,0.00022465,3]
[340995407,1730221843297,-500.0,0.00022465,3]
[340995408,1730221843307,-248.73899485,0.00022465,3]
[340995409,1730221843316,-500.0,0.00022465,3]
[340995410,1730221843326,-500.0,0.00022465,3]
[340995411,1730221843336,-6115.61,0.00022465,3]
[340995412,1730221843346,-500.0,0.00022465,3]
[340995413,1730221843355,-500.0,0.00022465,3]
[340995414,1730221843364,-199.661884,0.00022509,2]
[340995415,1730221843373,-249.23527774,0.00022588,2]
[340995416,1730221843383,-194.15815524,0.00022639,2]
[340995417,1730221843392,-420.0,0.00022681,2]
[340995418,1730221843402,-570.54,0.00022738,3]
[340995419,1730221843411,-218.71881111,0.00022739,3]
[340995420,1730221843420,-500.0,0.00022739,3]
[340995421,1730221843429,-500.0,0.00022739,3]
[340995422,1730221843438,-500.0,0.00022739,3]
[340995423,1730221843448,-500.0,0.00022739,3]
[340995424,1730221843457,-675.62,0.00022739,3]
[340995425,1730221843466,-500.0,0.00022739,3]
[340995426,1730221843476,-636.96,0.00022739,3]
[340995427,1730221843485,-500.0,0.00022739,3]
[340995428,1730221843495,-500.0,0.00022739,3]
[340995429,1730221843506,-500.0,0.00022739,3]
[340995430,1730221843515,-500.0,0.00022739,3]
[340995431,1730221843525,-500.0,0.00022739,3]
[340995432,1730221843534,-500.0,0.00022739,3]
[340995433,1730221843543,-500.0,0.00022739,3]
[340995434,1730221843553,-500.0,0.00022739,3]
[340995435,1730221843562,-500.0,0.00022739,3]
[340995436,1730221843572,-500.0,0.00022739,3]
[340995437,1730221843581,-6115.61,0.00022739,3]
[340995438,1730221843590,-500.0,0.00022739,3]
[340995439,1730221843599,-500.0,0.00022739,3]
[340995440,1730221843609,-420.0,0.00022932,2]
[340995441,1730221843619,-1000.0,0.00023,23]
[340995442,1730221843628,-500.0,0.00023013,3]
[340995443,1730221843637,-500.0,0.00023013,3]
[340995444,1730221843646,-500.0,0.00023013,3]
[340995445,1730221843655,-272.32666182,0.00023013,3]
[340995446,1730221843665,-675.62,0.00023013,3]
[340995447,1730221843675,-500.0,0.00023013,3]
[340995448,1730221843684,-636.96,0.00023013,3]
[340995449,1730221843694,-500.0,0.00023013,3]
[340995450,1730221843703,-500.0,0.00023013,3]
[340995451,1730221843712,-500.0,0.00023013,3]
[340995452,1730221843721,-500.0,0.00023013,3]
[340995453,1730221843731,-500.0,0.00023013,3]
[340995454,1730221843740,-500.0,0.00023013,3]
[340995455,1730221843750,-500.0,0.00023013,3]
[340995456,1730221843759,-6115.61,0.00023013,3]
[340995457,1730221843769,-500.0,0.00023013,3]
[340995458,1730221843778,-500.0,0.00023013,3]
[340995459,1730221843788,-551.95,0.00023054,2]
[340995460,1730221843798,-1000.0,0.00023177,2]
[340995461,1730221843807,-570.54,0.00023186,3]
[340995462,1730221843817,-15031.34476764,0.00023187,2]
[340995463,1730221843826,-570.54,0.00023286,3]
[340995464,1730221843837,-649.03035884,0.00023287,3]
[340995465,1730221843847,-500.0,0.00023287,3]
[340995466,1730221843856,-500.0,0.00023287,3]
[340995467,1730221843866,-675.62,0.00023287,3]
[340995468,1730221843875,-500.0,0.00023287,3]
[340995469,1730221843884,-636.96,0.00023287,3]
[340995470,1730221843894,-500.0,0.00023287,3]
[340995471,1730221843904,-500.0,0.00023287,3]
[340995472,1730221843913,-318.92,0.00023287,3]
[340995473,1730221843922,-500.0,0.00023287,3]
[340995474,1730221843932,-500.0,0.00023287,3]
[340995475,1730221843941,-6115.61,0.00023287,3]
[340995476,1730221843951,-500.0,0.00023287,3]
[340995477,1730221843962,-500.0,0.00023287,3]
[340995478,1730221843971,-500.0,0.00023311,30]
[340995479,1730221843982,-500.0,0.00023311,30]
[340995480,1730221843992,-500.0,0.00023311,30]
[340995481,1730221844001,-500.0,0.00023311,30]
[340995482,1730221844011,-500.0,0.00023311,30]
[340995483,1730221844020,-500.0,0.00023311,30]
[340995484,1730221844030,-500.0,0.00023311,30]
[340995485,1730221844040,-500.0,0.00023311,30]
[340995486,1730221844050,-500.0,0.00023311,30]
[340995487,1730221844062,-500.0,0.00023311,30]
[340995488,1730221844071,-500.0,0.00023311,30]
[340995489,1730221844080,-500.0,0.00023311,30]
[340995490,1730221844089,-500.0,0.00023311,30]
[340995491,1730221844098,-500.0,0.00023311,30]
[340995492,1730221844107,-500.0,0.00023311,30]
[340995493,1730221844116,-500.0,0.00023311,30]
[340995494,1730221844125,-500.0,0.00023311,30]
[340995495,1730221844134,-500.0,0.00023311,30]
[340995496,1730221844146,-500.0,0.00023311,30]
[340995497,1730221844155,-700.0,0.00023311,30]
[340995498,1730221844164,-249.23527774,0.00023359,2]
[340995499,1730221844173,-2395.0,0.00023362,2]
[340995500,1730221844182,-1107.0,0.00023362,2]
[340995501,1730221844192,-218.424879,0.00023475,2]
[340995502,1730221844202,-570.54,0.0002356,3]
[340995503,1730221844212,-500.0,0.00023561,3]
[340995504,1730221844221,-632.20212828,0.00023561,3]
[340995505,1730221844231,-675.62,0.00023561,3]
[340995506,1730221844241,-500.0,0.00023561,3]
[340995507,1730221844253,-636.96,0.00023561,3]
[340995508,1730221844263,-500.0,0.00023561,3]
[340995509,1730221844272,-500.0,0.00023561,3]
[340995510,1730221844281,-500.0,0.00023561,3]
[340995511,1730221844291,-500.0,0.00023561,3]
[340995512,1730221844300,-6115.61,0.00023561,3]
[340995513,1730221844309,-500.0,0.00023561,3]
[340995514,1730221844318,-500.0,0.00023561,3]
[340995515,1730221844328,-218.424879,0.00023768,2]
[340995516,1730221844338,-5235.38828106,0.0002379,2]
[340995517,1730221844347,-500.0,0.00023835,3]
[340995518,1730221844357,-675.62,0.00023835,3]
[340995519,1730221844366,-500.0,0.00023835,3]
[340995520,1730221844375,-636.96,0.00023835,3]
[340995521,1730221844385,-500.0,0.00023835,3]
[340995522,1730221844394,-500.0,0.00023835,3]
[340995523,1730221844404,-500.0,0.00023835,3]
[340995524,1730221844413,-500.0,0.00023835,3]
[340995525,1730221844424,-6115.61,0.00023835,3]
[340995526,1730221844433,-500.0,0.00023835,3]
[340995527,1730221844443,-500.0,0.00023835,3]
[340995528,1730221844452,-170.214,0.00023883,5]
[340995529,1730221844462,-600.0,0.00024,2]
[340995530,1730221844472,-218.424879,0.00024062,2]
[340995531,1730221844481,-570.54,0.00024108,3]
[340995532,1730221844491,-500.0,0.00024109,3]
[340995533,1730221844501,-675.62,0.00024109,3]
[340995534,1730221844511,-500.0,0.00024109,3]
[340995535,1730221844521,-636.96,0.00024109,3]
[340995536,1730221844530,-500.0,0.00024109,3]
[340995537,1730221844540,-500.0,0.00024109,3]
[340995538,1730221844550,-500.0,0.00024109,3]
[340995539,1730221844560,-500.0,0.00024109,3]
[340995540,1730221844569,-6115.61,0.00024109,3]
[340995541,1730221844579,-500.0,0.00024109,3]
[340995542,1730221844589,-500.0,0.00024109,3]
[340995543,1730221844598,-249.23527774,0.00024129,2]
[340995544,1730221844607,-278.806,0.0002413,2]
[340995545,1730221844616,-600.0,0.0002425,2]
[340995546,1730221844625,-218.424879,0.00024355,2]
[340995547,1730221844634,-500.0,0.00024383,3]
[340995548,1730221844644,-675.62,0.00024383,3]
[340995549,1730221844653,-500.0,0.00024383,3]
[340995550,1730221844662,-636.96,0.00024383,3]
[340995551,1730221844671,-500.0,0.00024383,3]
[340995552,1730221844680,-500.0,0.00024383,3]
[340995553,1730221844690,-500.0,0.00024383,3]
[340995554,1730221844699,-500.0,0.00024383,3]
[340995555,1730221844709,-6115.61,0.00024383,3]
[340995556,1730221844720,-500.0,0.00024383,3]
[340995557,1730221844730,-500.0,0.00024383,3]
[340995558,1730221844739,-153.0,0.00024418,2]
[340995559,1730221844748,-218.424879,0.00024648,2]
[340995560,1730221844757,-570.54,0.00024656,3]
[340995561,1730221844767,-500.0,0.00024657,2]
[340995562,1730221844776,-207.01721544,0.00024657,3]
[340995563,1730221844785,-500.0,0.00024657,3]
[340995564,1730221844795,-675.62,0.00024657,3]
[340995565,1730221844804,-500.0,0.00024657,3]
[340995566,1730221844814,-636.96,0.00024657,3]
[340995567,1730221844824,-500.0,0.00024657,3]
[340995568,1730221844834,-500.0,0.00024657,3]
[340995569,1730221844844,-458.57,0.00024657,3]
[340995570,1730221844853,-500.0,0.00024657,3]
[340995571,1730221844863,-6115.61,0.00024657,3]
[340995572,1730221844872,-500.0,0.00024657,3]
[340995573,1730221844882,-500.0,0.00024657,3]
[340995574,1730221844892,-150.0,0.00024658,2]
[340995575,1730221844902,-200.0,0.00024658,15]
[340995576,1730221844912,-660.0,0.00024658,2]
[340995577,1730221844923,-500.0,0.00024658,2]
[340995578,1730221844934,-500.0,0.00024658,2]
[340995579,1730221844945,-500.0,0.00024658,2]
[340995580,1730221844953,-500.0,0.00024658,2]
[340995581,1730221844962,-500.0,0.00024658,2]
[340995582,1730221844971,-500.0,0.00024658,2]
[340995583,1730221844980,-500.0,0.00024658,2]
[340995584,1730221844989,-500.0,0.00024658,2]
[340995585,1730221844998,-500.0,0.00024658,2]
[340995586,1730221845006,-500.0,0.00024658,2]
[340995587,1730221845015,-500.0,0.00024658,2]
[340995588,1730221845024,-500.0,0.00024658,2]
[340995589,1730221845032,-175.65158415,0.00024658,2]
[340995590,1730221845043,-587.0,0.00024676,2]
[340995591,1730221845053,-249.23527774,0.000249,2]
[340995592,1730221845063,-570.54,0.0002493,3]
[340995593,1730221845073,-412.58117988,0.00024931,3]
[340995594,1730221845082,-675.62,0.00024931,3]
[340995595,1730221845091,-500.0,0.00024931,3]
[340995596,1730221845102,-636.96,0.00024931,3]
[340995597,1730221845112,-500.0,0.00024931,3]
[340995598,1730221845122,-500.0,0.00024931,3]
[340995599,1730221845131,-500.0,0.00024931,3]
[340995600,1730221845141,-6115.61,0.00024931,3]
[340995601,1730221845151,-500.0,0.00024931,3]
[340995603,1730221845161,-500.0,0.00024931,3]
[340995604,1730221845171,-206.0,0.00024932,2]
[340995605,1730221845181,-168.84806717,0.00024999,2]
[340995606,1730221845191,-4040.64929728,0.00024999,2]
[340995607,1730221845200,-570.54,0.00024999,3]
[340995608,1730221845211,-570.54,0.00024999,3]
[340995609,1730221845220,-570.54,0.00024999,3]
[340995610,1730221845230,-570.54,0.00024999,3]
[340995611,1730221845239,-570.54,0.00024999,3]
[340995612,1730221845252,-77158.23131437,0.00025,2]
[340995613,1730221845261,-3822.46843818,0.00025,2]
[340995614,1730221845271,-8847.50723659,0.00025,120]
[340995615,1730221845280,-946.78,0.00025,14]
[340995616,1730221845291,-2115.94,0.00025,14]
[340995617,1730221845300,-260.7,0.00025,2]
[340995618,1730221845310,-150.024,0.00025,2]
[340995619,1730221845321,-1000.0,0.00025,25]
[340995620,1730221845331,-206.0,0.00025,2]
[340995621,1730221845341,-151.0,0.00025,2]
[340995622,1730221845351,-570.54,0.00025089,3]
[340995623,1730221845361,-570.54,0.00025089,3]
[340995624,1730221845372,-570.54,0.00025089,3]
[340995626,1730221845383,-570.54,0.00025089,3]
[340995628,1730221845394,-570.54,0.00025089,3]
[340995629,1730221845405,-570.74,0.00025089,3]
[340995630,1730221845417,-57396.38405098,0.0002509,2]
[340995635,1730221845615,-500.0,0.00020848,2]
[340995636,1730221845625,-500.0,0.00020848,2]
[340995637,1730221845635,-500.0,0.00020848,2]
[340995638,1730221845644,-500.0,0.00020848,2]
[340995639,1730221845655,-500.0,0.00020848,2]
[340995640,1730221845665,-500.0,0.00020848,2]
[340995641,1730221845676,-500.0,0.00020848,2]
[340995642,1730221845687,-175.73925302,0.00020848,2]
[340995643,1730221845697,-500.0,0.00020848,2]
[340995644,1730221845708,-500.0,0.00020848,2]
[340995645,1730221845718,-500.0,0.00020848,2]
[340995647,1730221845729,-500.0,0.00020848,2]
[340995649,1730221845740,-500.0,0.00020848,2]
[340995651,1730221845750,-500.0,0.00020848,2]
[340995652,1730221845760,-500.0,0.00020848,2]
[340995653,1730221845773,-500.0,0.00020848,2]
[340995654,1730221845826,-41970.98185854,0.0002509,2]
[340995655,1730221845884,-32780.29939199,0.0002509,2]
[340995656,1730221846034,-29349.14422908,0.00021,3]